fUST/lending_fUST_20260412
["ID","MTS","AMOUNT","RATE_DAILY","PERIOD"]
[420296623,1775925044823,-1691.41,0.00013705,2]
[420296624,1775925044832,-1691.41,0.00013705,2]
[420296625,1775925044846,-1691.41,0.00013705,2]
[420296626,1775925044870,-1691.41,0.00013705,2]
[420296627,1775925044879,-1691.41,0.00013705,2]
[420296628,1775925044890,-1691.41,0.00013705,2]
[420296629,1775925044899,-1691.41,0.00013705,2]
[420296630,1775925044913,-1691.41,0.00013705,2]
[420296631,1775925044931,-1691.41,0.00013705,2]
[420296632,1775925044941,-1691.41,0.00013705,2]
[420296633,1775925044952,-2619.89,0.00013705,2]
[420296634,1775925044968,-500.0,0.00013773,2]
[420296635,1775925044978,-500.0,0.00013773,2]
[420296636,1775925044989,-4565.16004076,0.00013805,2]
[420296637,1775925045003,-1500.0,0.00013807,2]
[420296638,1775925045027,-1500.0,0.00013825,2]
[420296639,1775925045037,-1500.0,0.00013825,2]
[420296640,1775925045051,-5634.23533321,0.00014,2]
[420296641,1775925045065,-4059.15438477,0.00014069,2]
[420296642,1775925045077,-234.2016922,0.00014222,2]
[420296643,1775925045094,-1000.0,0.00014321,2]
[420296644,1775925045124,-2000.0,0.00014373,2]
[420296645,1775925045134,-2000.0,0.00014373,2]
[420296646,1775925045162,-196.3797719,0.00014544,2]
[420296647,1775925045174,-251.63596662,0.00014639,5]
[420296648,1775925045191,-4576.62203487,0.00014756,2]
[420296649,1775925045224,-227.49760642,0.00014769,2]
[420296650,1775925045243,-864.0,0.00014809,2]
[420296651,1775925045270,-480.00000005,0.00014868,2]
[420296652,1775925045284,-1337.1981222,0.00014921,2]
[420296653,1775925045345,-1113.33608714,0.00014921,2]
[420296654,1775925045364,-469.0,0.00015,2]
[420296655,1775925045385,-201.64264713,0.00015,2]
[420296656,1775925045395,-494.0,0.00015,2]
[420296657,1775925045427,-5050.61815765,0.00015,2]
[420296658,1775925045437,-160.0,0.00015,2]
[420296659,1775925045448,-1389.50066278,0.00015025,2]
[420296660,1775925045479,-533.486491,0.00015068,2]
[420296661,1775925045490,-4059.15438477,0.0001513,2]
[420296662,1775925045517,-5050.61815765,0.000152,2]
[420296663,1775925045527,-156.0,0.00015295,2]
[420296665,1775925045537,-5050.61815765,0.000153,2]
[420296667,1775925045577,-167.6798494,0.00015332,2]
[420296668,1775925045586,-166.6721808,0.00015332,2]
[420296669,1775925045598,-5050.61815765,0.000155,2]
[420296670,1775925045616,-1000.0,0.000155,2]
[420296671,1775925045641,-5050.61815765,0.000156,2]
[420296672,1775925045651,-500.0,0.00015716,2]
[420296673,1775925045672,-5050.61815765,0.000158,2]
[420296674,1775925045703,-738.0,0.00015896,2]
[420296675,1775925045713,-184.0,0.00015896,2]
[420296676,1775925045733,-441.0,0.00015896,2]
[420296678,1775925045751,-5050.61815765,0.000159,2]
[420296679,1775925045762,-188.079244,0.00015946,2]
[420296680,1775925045774,-150.0,0.00016,2]
[420296681,1775925045788,-1000.0,0.00016,2]
[420296682,1775925045809,-5050.61815765,0.000161,2]
[420296683,1775925045820,-150.0,0.00016137,2]
[420296684,1775925045831,-4059.15438477,0.0001619,2]
[420296685,1775925045848,-5050.61815765,0.000162,2]
[420296686,1775925045861,-1000.0,0.0001629,2]
[420296687,1775925045870,-5050.61815765,0.000164,2]
[420296688,1775925045880,-1557.0,0.00016438,2]
[420296689,1775925045900,-250.0,0.00016438,7]
[420296690,1775925045910,-5612.100685,0.00016438,2]
[420296691,1775925045919,-5612.100685,0.00016438,2]
[420296692,1775925045939,-4373.42696097,0.00016438,2]
[420296693,1775925045957,-1238.67372403,0.00016438,2]
[420296694,1775925045977,-1719.27615194,0.00016438,2]
[420296695,1775925045991,-3892.82453306,0.00016438,2]
[420296696,1775925046001,-5612.100685,0.00016438,2]
[420296697,1775925046018,-5612.100685,0.00016438,2]
[420296698,1775925046029,-5612.100685,0.00016438,2]
[420296699,1775925046039,-5612.100685,0.00016438,2]
[420296700,1775925046047,-5406.20224752,0.00016438,2]
[420296701,1775925046328,-150.0,0.00011252,2]
[420296702,1775925046338,-496.31172088,0.00011252,2]
[420296703,1775925046727,-1248.68827912,0.00011252,2]
[420296704,1775925046738,-435.0,0.00011252,2]
[420296705,1775925046753,-474.0,0.00011252,2]
[420296706,1775925046775,-454.24367318,0.00011252,2]
[420296707,1775925047069,-1290.75632682,0.00011252,2]
[420296708,1775925047080,-435.0,0.00011252,2]
[420296709,1775925047091,-474.0,0.00011252,2]
[420296710,1775925047100,-1745.0,0.00011252,2]
[420296711,1775925047113,-435.0,0.00011252,2]
[420296712,1775925047124,-1.83995458,0.00011252,2]
[420296713,1775925047214,-492.25559726,0.00011252,2]
[420296714,1775925047225,-1766.46565664,0.00011252,2]
[420296715,1775925047251,-452.0,0.00015025,2]
[420296716,1775925047263,-430.0,0.00015025,2]
[420296717,1775925047492,-205.89843748,0.00016438,2]
[420296718,1775925047511,-5612.100685,0.00016438,2]
[420296719,1775925047525,-5612.100685,0.00016438,2]
[420296720,1775925047590,-5612.100685,0.00016438,2]
[420296721,1775925047655,-5612.100685,0.00016438,2]
[420296722,1775925047666,-5612.100685,0.00016438,2]
[420296723,1775925047713,-5612.100685,0.00016438,2]
[420296724,1775925047724,-5612.100685,0.00016438,2]
[420296725,1775925047744,-5612.100685,0.00016438,2]
[420296726,1775925047757,-5612.100685,0.00016438,2]
[420296727,1775925047769,-5612.100685,0.00016438,2]
[420296728,1775925047783,-5612.100676,0.00016438,2]
[420296729,1775925047796,-5715.35090349,0.00016659,2]
[420296730,1775925047821,-1553.25448937,0.00016712,2]
[420296818,1775926232455,-151.09,5e-05,2]
[420296821,1775926232472,-622.09225452,5.025e-05,2]
[420296823,1775926232483,-151.09,5.1e-05,2]
[420296825,1775926232493,-151.09,5.1e-05,2]
[420296827,1775926232507,-151.09,5.2e-05,2]
[420296829,1775926232525,-151.09,5.2e-05,2]
[420296831,1775926232538,-151.09,5.3e-05,2]
[420296833,1775926232570,-151.09,5.3e-05,2]
[420296835,1775926232580,-151.09,5.4e-05,2]
[420296837,1775926232608,-151.09,5.4e-05,2]
[420296840,1775926232620,-151.09,5.5e-05,2]
[420296842,1775926232634,-151.09,5.5e-05,2]
[420296843,1775926232648,-191.590741,5.729e-05,2]
[420296846,1775926232663,-734.06886033,7.025e-05,2]
[420296847,1775926232676,-300.0,8e-05,2]
[420296849,1775926232686,-374.40888692,8.93e-05,2]
[420296852,1775926232702,-1010.08142358,8.93e-05,2]
[420296854,1775926232717,-491.38888557,9.025e-05,2]
[420296858,1775926232758,-354.65658058,9.025e-05,2]
[420296860,1775926232773,-71.99656699,0.0001,2]
[420296863,1775926232790,-400.10460441,0.0001,2]
[420296865,1775926232800,-300.0,0.00010686,2]
[420296867,1775926232811,-441.0,0.00010687,2]
[420296868,1775926232826,-738.0,0.00010687,2]
[420296871,1775926232836,-958.02207196,0.00011025,2]
[420296873,1775926232859,-173.394795,0.00011451,2]
[420296875,1775926232868,-420.0,0.00011746,2]
[420296877,1775926232878,-180.21087091,0.00012729,2]
[420296878,1775926232898,-180.21087091,0.00012983,7]
[420296881,1775926232935,-5000.0,0.00013,2]
[420296883,1775926232968,-210.068,0.00013,2]
[420296885,1775926232978,-1069.99867777,0.00013025,2]
[420296887,1775926233013,-9191.36465477,0.00013325,2]
[420296889,1775926233035,-500.0,0.00013424,2]
[420296891,1775926233057,-500.0,0.00013424,2]
[420296893,1775926233072,-471.06106042,0.00013424,2]
[420296896,1775926233097,-500.0,0.00013424,2]
[420296898,1775926233124,-500.0,0.00013424,2]
[420296900,1775926233136,-500.0,0.00013424,2]
[420296902,1775926233146,-500.0,0.00013424,2]
[420296904,1775926233163,-500.0,0.00013424,2]
[420296906,1775926233176,-320.5490417,0.00013424,2]
[420296909,1775926233188,-500.0,0.00013424,2]
[420296911,1775926233205,-500.0,0.00013424,2]
[420296913,1775926233217,-500.0,0.00013424,2]
[420296915,1775926233231,-500.0,0.00013424,2]
[420296918,1775926233253,-500.0,0.00013424,2]
[420296920,1775926233267,-500.0,0.00013424,2]
[420296922,1775926233304,-500.0,0.00013424,2]
[420296924,1775926233319,-533.0,0.00013425,2]
[420296926,1775926233336,-533.0,0.00013425,2]
[420296929,1775926233350,-533.0,0.00013425,2]
[420296931,1775926233362,-533.0,0.00013425,2]
[420296933,1775926233375,-533.0,0.00013425,2]
[420296935,1775926233394,-533.0,0.00013425,2]
[420296937,1775926233415,-533.0,0.00013425,2]
[420296939,1775926233426,-533.0,0.00013425,2]
[420296942,1775926233437,-533.0,0.00013425,2]
[420296944,1775926233462,-533.0,0.00013425,2]
[420296946,1775926233487,-533.0,0.00013425,2]
[420296948,1775926233503,-533.0,0.00013425,2]
[420296950,1775926233539,-533.0,0.00013425,2]
[420296953,1775926233558,-533.0,0.00013425,2]
[420296955,1775926233580,-533.0,0.00013425,2]
[420296957,1775926233596,-533.0,0.00013425,2]
[420296959,1775926233624,-150.0,0.00013425,2]
[420296961,1775926233634,-150.0,0.00013425,2]
[420296963,1775926233679,-533.0,0.00013425,2]
[420296965,1775926233698,-150.0,0.00013425,2]
[420296967,1775926233728,-533.0,0.00013425,2]
[420296969,1775926233746,-150.0,0.00013425,2]
[420296971,1775926233776,-150.0,0.00013425,2]
[420296973,1775926233802,-150.0,0.00013425,2]
[420296975,1775926233814,-150.0,0.00013425,2]
[420296977,1775926233826,-150.0,0.00013425,2]
[420296993,1775926234007,-533.0,0.00013425,2]
[420296996,1775926234035,-150.0,0.00013425,2]
[420296998,1775926234047,-179.79699901,0.00013425,2]
[420297000,1775926234064,-533.0,0.00013425,2]
[420297003,1775926234077,-533.0,0.00013425,2]
[420297005,1775926234086,-533.0,0.00013425,2]
[420297007,1775926234095,-533.0,0.00013425,2]
[420297008,1775926234111,-547.32106163,0.00013425,2]
[420297011,1775926234120,-188.56390325,0.00013425,2]
[420297013,1775926234130,-500.0,0.00013425,2]
[420297015,1775926234153,-500.0,0.00013425,2]
[420297017,1775926234163,-622.29547329,0.00013425,2]
[420297018,1775926234172,-500.0,0.00013425,2]
[420297020,1775926234184,-574.88686336,0.00013425,2]
[420297022,1775926234198,-151.5,0.00013425,2]
[420297024,1775926234207,-500.0,0.00013425,2]
[420297026,1775926234217,-500.0,0.00013425,2]
[420297028,1775926234232,-602.0,0.00013425,2]
[420297030,1775926234244,-500.0,0.00013425,2]
[420297032,1775926234254,-602.0,0.00013425,2]
[420297034,1775926234268,-500.0,0.00013425,2]
[420297036,1775926234279,-602.0,0.00013425,2]
[420297038,1775926234296,-602.0,0.00013425,2]
[420297040,1775926234305,-500.0,0.00013425,2]
[420297042,1775926234315,-602.0,0.00013425,2]
[420297044,1775926234326,-474.01104571,0.00013425,2]
[420297045,1775926234342,-602.0,0.00013425,2]
[420297046,1775926234351,-602.0,0.00013425,2]
[420297047,1775926234362,-602.0,0.00013425,2]
[420297048,1775926234375,-602.0,0.00013425,2]
[420297049,1775926234387,-602.0,0.00013425,2]
[420297050,1775926234396,-602.0,0.00013425,2]
[420297051,1775926234416,-602.0,0.00013425,2]
[420297052,1775926234425,-602.0,0.00013425,2]
[420297053,1775926234434,-602.0,0.00013425,2]
[420297054,1775926234451,-602.0,0.00013425,2]
[420297055,1775926234465,-602.0,0.00013425,2]
[420297056,1775926234483,-86.90091294,0.00013425,2]
[420297057,1775926234886,-515.09908706,0.00013425,2]
[420297058,1775926234899,-602.0,0.00013425,2]
[420297059,1775926234915,-602.0,0.00013425,2]
[420297060,1775926234926,-602.0,0.00013425,2]
[420297061,1775926234940,-602.0,0.00013425,2]
[420297062,1775926234952,-83.68401941,0.00013425,2]
[420297193,1775926246466,-180.2108709,0.00013233,14]
[420297195,1775926246477,-357.39026532,0.00013425,2]
[420297246,1775927433766,-179.53,5e-05,2]
[420297247,1775927433775,-554.23665339,5.125e-05,2]
[420297248,1775927433785,-179.53,5.5e-05,2]
[420297249,1775927433795,-456.67712776,7.125e-05,2]
[420297250,1775927433837,-197.32212324,7.125e-05,2]
[420297251,1775927433852,-129.67787676,9.125e-05,2]
[420297305,1775927441299,-414.12432266,9.125e-05,2]
[420297306,1775927441325,-209.95964919,9.125e-05,2]
[420297307,1775927441338,-186.0,0.00010687,2]
[420297308,1775927441351,-184.0,0.00010687,2]
[420297309,1775927441372,-441.0,0.00010687,2]
[420297310,1775927441387,-300.0,0.00010855,2]
[420297311,1775927441402,-267.10705083,0.00010855,2]
[420297315,1775927443758,-479.87346271,0.00010855,2]
[420297316,1775927443822,-228.01948646,0.00010855,2]
[420297317,1775927443840,-793.45636142,0.00010856,2]
[420297465,1775928225810,541.61307041,4.9e-05,2]
[420297502,1775928632585,-3141.43866366,4.802e-05,2]
[420297503,1775928632604,-1076.45481776,4.802e-05,2]
[420297504,1775928632624,-782.10651858,4.802e-05,2]
[420297506,1775928632634,-543.58852406,4.926e-05,2]
[420297508,1775928632652,-641.43445839,6.926e-05,2]
[420297509,1775928632667,-300.0,7.705e-05,2]
[420297510,1775928632676,-200.0,7.706e-05,2]
[420297511,1775928632692,-200.0,7.706e-05,2]
[420297512,1775928632714,-200.0,7.706e-05,2]
[420297513,1775928632743,-200.0,7.706e-05,7]
[420297514,1775928632787,-200.0,7.706e-05,7]
[420297515,1775928632819,-200.0,7.706e-05,7]
[420297516,1775928632851,-200.0,7.706e-05,7]
[420297517,1775928632860,-200.0,7.706e-05,30]
[420297518,1775928632886,-739.28039273,8.926e-05,2]
[420297519,1775928632912,-1140.51807264,0.0001,2]
[420297524,1775928638976,-1017.38448126,0.0001,2]
[420297525,1775928638991,-441.0,0.00010686,2]
[420297526,1775928639038,-184.0,0.00010686,2]
[420297527,1775928639053,-837.12632706,0.00010926,2]
[420297528,1775928639094,-222.61,0.00011132,2]
[420297529,1775928639104,-4333.4182911,0.00011388,2]
[420297530,1775928639115,-6958.7617532,0.00012414,2]
[420297531,1775928639133,-197.4649556,0.00012434,2]
[420297532,1775928639145,-180.03360461,0.00012687,2]
[420297533,1775928639157,-220.572,0.00012798,2]
[420297534,1775928639167,-245.2458874,0.000128,2]
[420297535,1775928639192,-500.0,0.00012858,2]
[420297536,1775928639202,-500.0,0.00012858,2]
[420297537,1775928639215,-500.0,0.00012858,2]
[420297538,1775928639227,-644.24754309,0.00012858,2]
[420297539,1775928639237,-500.0,0.00012858,2]
[420297540,1775928639246,-500.0,0.00012858,2]
[420297541,1775928639262,-500.0,0.00012858,2]
[420297542,1775928639272,-500.0,0.00012858,2]
[420297543,1775928639281,-500.0,0.00012858,2]
[420297544,1775928639291,-605.09988125,0.00012858,2]
[420297545,1775928639310,-238.25122524,0.00012858,2]
[420297546,1775928639320,-500.0,0.00012858,2]
[420297547,1775928639330,-500.0,0.00012858,2]
[420297548,1775928639352,-203.73392887,0.00012858,2]
[420297549,1775928639361,-500.0,0.00012858,2]
[420297550,1775928639372,-500.0,0.00012858,2]
[420297551,1775928639385,-500.0,0.00012858,2]
[420297552,1775928639399,-500.0,0.00012858,2]
[420297553,1775928639410,-500.0,0.00012858,2]
[420297554,1775928639419,-500.0,0.00012858,2]
[420297555,1775928639441,-500.0,0.00012858,2]
[420297556,1775928639454,-500.0,0.00012858,2]
[420297557,1775928639465,-500.0,0.00012858,2]
[420297558,1775928639478,-500.0,0.00012858,2]
[420297559,1775928639489,-301.7,0.00012858,2]
[420297560,1775928639506,-500.0,0.00012858,2]
[420297561,1775928639518,-500.0,0.00012858,2]
[420297562,1775928639527,-500.0,0.00012858,2]
[420297563,1775928639538,-500.0,0.00012859,2]
[420297564,1775928639556,-615.97815085,0.00012859,2]
[420297565,1775928639567,-500.0,0.00012859,2]
[420297566,1775928639579,-500.0,0.00012859,2]
[420297567,1775928639596,-500.0,0.00012859,2]
[420297568,1775928639606,-231.45582173,0.00012859,2]
[420297569,1775928639617,-500.0,0.00012859,2]
[420297570,1775928639640,-500.0,0.00012859,2]
[420297571,1775928639650,-370.0,0.00012859,2]
[420297572,1775928639661,-500.0,0.00012859,2]
[420297573,1775928639676,-500.0,0.00012859,2]
[420297574,1775928639691,-461.17439058,0.00012859,2]
[420297575,1775928639706,-500.0,0.00012859,2]
[420297576,1775928639716,-500.0,0.00012859,2]
[420297577,1775928639744,-500.0,0.00012859,2]
[420297578,1775928639944,-500.0,0.00012859,2]
[420297579,1775928639964,-500.0,0.00012859,2]
[420297580,1775928639977,-500.0,0.00012859,2]
[420297581,1775928639990,-500.0,0.00012859,2]
[420297582,1775928639999,-649.37241313,0.00012859,2]
[420297583,1775928640011,-931.75196649,0.00012859,2]
[420297584,1775928640026,-649.37241313,0.00012859,2]
[420297585,1775928640035,-931.75196649,0.00012859,2]
[420297586,1775928640046,-649.37241313,0.00012859,2]
[420297587,1775928640056,-931.75196649,0.00012859,2]
[420297588,1775928640069,-649.37241313,0.00012859,2]
[420297589,1775928640079,-931.75196649,0.00012859,2]
[420297590,1775928640096,-649.37241313,0.00012859,2]
[420297591,1775928640105,-931.75196649,0.00012859,2]
[420297592,1775928640115,-931.75196649,0.00012859,2]
[420297593,1775928640125,-649.37241313,0.00012859,2]
[420297594,1775928640143,-649.37241313,0.00012859,2]
[420297595,1775928640152,-649.37241313,0.00012859,2]
[420297596,1775928640163,-931.75196649,0.00012859,2]
[420297597,1775928640178,-649.37241313,0.00012859,2]
[420297598,1775928640201,-931.75196649,0.00012859,2]
[420297599,1775928640211,-649.37241313,0.00012859,2]
[420297600,1775928640228,-649.37241313,0.00012859,2]
[420297601,1775928640237,-641.25525797,0.00012859,2]
[420297602,1775928640255,-932.80678004,0.00012859,2]
[420297603,1775928640267,-932.80678004,0.00012859,2]
[420297604,1775928640277,-932.80678004,0.00012859,2]
[420297605,1775928640303,-641.25525797,0.00012859,2]
[420297606,1775928640312,-932.80678004,0.00012859,2]
[420297607,1775928640322,-641.25525797,0.00012859,2]
[420297608,1775928640345,-932.80678004,0.00012859,2]
[420297609,1775928640355,-932.80678004,0.00012859,2]
[420297610,1775928640370,-641.25525797,0.00012859,2]
[420297611,1775928640381,-641.25525797,0.00012859,2]
[420297612,1775928640393,-932.80678004,0.00012859,2]
[420297613,1775928640402,-641.25525797,0.00012859,2]
[420297614,1775928640418,-932.80678004,0.00012859,2]
[420297615,1775928640428,-1224.65447481,0.0001286,2]
[420297682,1775928641538,-744.24204284,0.0001286,2]
[420298072,1775928647126,-23249.84248417,0.0001286,2]
[420298245,1775929202487,208.02,2e-05,2]
[420298362,1775929846058,-331.71298647,0.00010366,2]
[420298422,1775931032122,-4126.67394312,9.91e-05,2]
[420298424,1775931032134,-326.87529113,0.00010112,2]
[420298428,1775931032179,-193.10887054,0.00010112,2]
[420298431,1775931032192,-107.40804086,0.00010546,2]
[420298463,1775931038341,-512.35709726,0.00010546,2]
[420298464,1775931038356,-1824.32747286,0.0001083,7]
[420298465,1775931038379,-1200.0,0.0001083,2]
[420298466,1775931038409,-648.91272093,0.00010831,7]
[420298477,1775931043240,-1037.38318,0.00010831,7]
[420298478,1775931043260,-5.24793927,0.00010831,7]
[420298479,1775931043271,-152.315,0.0001113,2]
[420298480,1775931043282,-210.642,0.0001113,2]
[420298481,1775931043292,-232.529,0.0001113,2]
[420298482,1775931043307,-150.572,0.0001113,2]
[420298483,1775931043317,-250.0,0.0001113,2]
[420298484,1775931043330,-59.8393309,0.0001113,2]
[420298589,1775932232391,-537.252,9.156e-05,2]
[420298637,1775932238563,-1462.748,9.156e-05,2]
[420298638,1775932238578,-272.84800568,9.156e-05,2]
[420298639,1775932238590,-517.70221457,9.347e-05,2]
[420298640,1775932238600,-546.62725478,9.538e-05,2]
[420298641,1775932238618,-294.69289802,9.95e-05,2]
[420298642,1775932238630,-1177.59282049,9.95e-05,2]
[420298643,1775932238641,-189.28,0.00010204,2]
[420298644,1775932238662,-894.70337387,0.00010299,2]
[420298659,1775932241143,-133.29662613,0.00010299,2]
[420298661,1775932241157,-166.88399764,0.000103,2]
[420298676,1775932243726,-1895.33769391,0.000103,2]
[420298677,1775932243746,-4138.75348723,0.000104,2]
[420298678,1775932243757,-300.0,0.00010472,2]
[420298679,1775932243767,-1629.71069203,0.00010474,2]
[420298696,1775932246301,-2112.22031856,0.00010474,2]
[420298698,1775932246316,-966.92732974,0.00010474,2]
[420298700,1775932246330,-3867.70931898,0.00010474,2]
[420298701,1775932246339,-399.46801521,0.00010474,2]
[420298703,1775932246355,-1596.27418877,0.00010474,2]
[420298704,1775932246370,-151.0,0.00010474,2]
[420298706,1775932246380,-151.0,0.00010474,2]
[420298707,1775932246420,-79.64117704,0.00010474,2]
[420298708,1775932246506,-71.35882296,0.00010474,2]
[420298709,1775932246535,-3569.7632533,0.00010561,2]
[420298710,1775932246555,-151.0,0.00010561,2]
[420298711,1775932246567,-151.0,0.00010561,2]
[420298712,1775932246594,-151.0,0.00010561,2]
[420298713,1775932246606,-4715.51006925,0.000106,2]
[420298714,1775932246619,-5383.84138442,0.000108,2]
[420298715,1775932246640,-151.0,0.000108,2]
[420298716,1775932246649,-151.0,0.000108,2]
[420298717,1775932246678,-288.360296,0.000108,2]
[420298718,1775932246689,-151.0,0.00010959,2]
[420298719,1775932246711,-280.576009,0.00010959,2]
[420298720,1775932246721,-91.1696691,0.0001113,2]
[420298721,1775932246734,-500.0,0.00011289,2]
[420298722,1775932246744,-500.0,0.00011289,2]
[420298723,1775932246762,-513.05949585,0.00011289,2]
[420298724,1775932246777,-151.0,0.0001129,2]
[420298725,1775932246787,-151.0,0.0001129,2]
[420298726,1775932246797,-15380.3736,0.00011293,2]
[420298727,1775932246815,-151.0,0.00011293,2]
[420298728,1775932246826,-610.88861319,0.00011347,2]
[420298729,1775932246836,-184.0,0.00011483,2]
[420298730,1775932246850,-441.0,0.00011483,2]
[420298731,1775932246862,-151.0,0.00011586,2]
[420298732,1775932246872,-151.0,0.00011586,2]
[420298733,1775932246882,-151.0,0.00011586,2]
[420298734,1775932246899,-5718.007042,0.00011589,2]
[420298735,1775932246910,-718.90613208,0.00011605,2]
[420298736,1775932246922,-2872.7489038,0.00011605,2]
[420298737,1775932246942,-775.33917596,0.00011605,2]
[420298738,1775932246951,-3098.25534715,0.00011605,2]
[420298739,1775932246975,-1021.15,0.00012,2]
[420298740,1775932246995,-1435.00374645,0.00012116,2]
[420298741,1775932247007,-285.43868814,0.00012216,2]
[420298742,1775932247029,-537.6845,0.00012359,2]
[420298743,1775932247039,-1957.856,0.00012359,2]
[420298744,1775932247060,-537.6845,0.00012359,2]
[420298745,1775932247071,-156.587,0.00012359,2]
[420298746,1775932247082,-2150.738,0.00012359,2]
[420298747,1775932247107,-702.6050767,0.00012407,2]
[420298748,1775932247117,-557.5788265,0.00012414,2]
[420298749,1775932247133,-2030.296672,0.00012414,2]
[420298750,1775932247148,-578.20924308,0.00012469,2]
[420298751,1775932247160,-2105.41764886,0.00012469,2]
[420298752,1775932247171,-263.82,0.000125,2]
[420298753,1775932247190,-599.60298507,0.00012524,2]
[420298754,1775932247203,-2183.31810187,0.00012524,2]
[420298755,1775932247214,-621.78829552,0.00012579,2]
[420298756,1775932247231,-2264.10087164,0.00012579,2]
[420298757,1775932247268,-259.0,0.00012631,2]
[420298758,1775932247280,-644.79446246,0.00012634,2]
[420298759,1775932247291,-2347.87260389,0.00012634,2]
[420298760,1775932247309,-668.65185757,0.00012689,2]
[420298761,1775932247322,-2434.74389024,0.00012689,2]
[420298762,1775932247334,-693.3919763,0.00012744,2]
[420298763,1775932247359,-2524.82941417,0.00012744,2]
[420298764,1775932247368,-719.04747942,0.00012799,2]
[420298765,1775932247378,-2618.2481025,0.00012799,2]
[420298766,1775932247397,-745.65223616,0.00012854,2]
[420298767,1775932247407,-736.61688455,0.00012854,2]
[420298768,1775932247417,-268.7722334,0.00012859,2]
[420298769,1775932247435,-284.69681258,0.00012859,2]
[420298770,1775932247445,-1074.01384465,0.00012859,2]
[420298771,1775932247455,-1137.64846307,0.00012859,2]
[420298772,1775932247465,-49401.59414836,0.0001286,2]
[420298773,1775932247487,-8562.9793968,0.000129,2]
[420298774,1775932247497,-8562.9793968,0.000129,2]
[420298775,1775932247506,-557.5788265,0.00012907,2]
[420298776,1775932247532,-2230.315306,0.00012907,2]
[420298777,1775932247541,-773.2413689,0.00012909,2]
[420298778,1775932247553,-801.85129955,0.00012964,2]
[420298779,1775932247740,-1435.00374645,0.00013012,2]
[420298780,1775932247772,-160.0,0.00013041,2]
[420298781,1775932247795,-197.9,0.000132,2]
[420298782,1775932247819,-180.21087091,0.00013233,14]
[420298783,1775932247842,-300.51691139,0.00013233,14]
[420298784,1775932247903,-704.07501182,0.00013347,2]
[420298785,1775932247933,-500.0,0.00013425,2]
[420298786,1775932247967,-500.0,0.00013425,2]
[420298787,1775932248007,-500.0,0.00013425,2]
[420298788,1775932248018,-500.0,0.00013425,2]
[420298789,1775932248052,-337.54019208,0.00013425,2]
[420298790,1775932248070,-151.5,0.00013425,2]
[420298791,1775932248085,-253.17900377,0.00013425,2]
[420298792,1775932248094,-155.7074763,0.00013455,2]
[420298793,1775932248107,-2150.738,0.00013455,2]
[420298794,1775932248117,-457.1073956,0.00013506,2]
[420298795,1775932248128,-180.71298647,0.00013557,2]
[420298796,1775932248138,-155.327,0.00013697,2]
[420298797,1775932248150,-500.0,0.00013698,2]
[420298798,1775932248169,-500.0,0.00013698,2]
[420298799,1775932248183,-500.0,0.00013698,2]
[420298800,1775932248193,-500.0,0.00013698,2]
[420298801,1775932248213,-500.0,0.00013698,2]
[420298802,1775932248223,-500.0,0.00013698,2]
[420298803,1775932248232,-500.0,0.00013698,2]
[420298804,1775932248256,-500.0,0.00013698,2]
[420298805,1775932248266,-181.71318468,0.00013698,2]
[420298806,1775932248275,-500.35981241,0.00013698,2]
[420298807,1775932248288,-500.0,0.00013698,2]
[420298808,1775932248304,-500.0,0.00013698,2]
[420298809,1775932248314,-500.0,0.00013698,2]
[420298810,1775932248327,-545.09838459,0.00013698,2]
[420298811,1775932248349,-180.0,0.00013699,2]
[420298812,1775932248359,-210.637137,0.00013699,2]
[420298813,1775932248382,-1058.610187,0.00013699,2]